lending/lending_fUSD_20240411
["ID","MTS","AMOUNT","RATE_DAILY","PERIOD"]
[322124464,1712818243046,-636.06924127,0.00029797,2]
[322124465,1712818243068,-312.52095379,0.000298,2]
[322124466,1712818243085,-800.0,0.00029825,2]
[322124467,1712818243103,-151.46810087,0.00029835,2]
[322124468,1712818243124,-151.29903243,0.00029859,2]
[322124469,1712818243142,-260.36,0.0002989,15]
[322124470,1712818243163,-14555.82617316,0.00029891,2]
[322124472,1712818243182,-6683.05841153,0.00029891,2]
[322124473,1712818243203,-2841.88178192,0.00029897,2]
[322124474,1712818243227,-360.64236996,0.000299,2]
[322124475,1712818243241,-400.162239,0.000299,2]
[322124478,1712818243257,-364630.71582709,0.000299,4]
[322124643,1712818244872,-1141.76092064,0.00020482,2]
[322124645,1712818244883,-162.00153004,0.00027083,2]
[322124647,1712818244892,-2288.35165956,0.000299,4]
[322124654,1712818244946,-1582.46425882,0.000299,4]
[322124656,1712818244957,-3124.78841439,0.000299,4]
[322124659,1712818244973,-668386.8543381,0.000299,4]
[322124661,1712818244982,-281.63813934,0.000299,2]
[322124663,1712818244991,-150.00078309,0.00029922,2]
[322124665,1712818245001,-151.50782013,0.00029947,2]
[322124667,1712818245010,-157.041114,0.00029948,5]
[322124669,1712818245020,-230.0,0.0002997,15]
[322124671,1712818245029,-150.5,0.0002997,15]
[322124673,1712818245039,-245.0,0.0002997,15]
[322124675,1712818245048,-150.5,0.0002998,15]
[322124677,1712818245057,-150.5,0.0002998,15]
[322124679,1712818245066,-245.0,0.0002998,15]
[322124681,1712818245075,-150.5,0.0002999,15]
[322124683,1712818245085,-150.5,0.0002999,15]
[322124685,1712818245096,-245.0,0.0002999,15]
[322124687,1712818245106,-160.97081115,0.00029999,10]
[322124689,1712818245115,-100000.0,0.0003,2]
[322124691,1712818245124,-19311.62545863,0.0003,4]
[322124693,1712818245133,-405.59680121,0.0003,4]
[322124695,1712818245143,-8099.32716994,0.0003,2]
[322124697,1712818245152,-23722.27564431,0.0003,4]
[322124699,1712818245162,-6939.13491161,0.0003,2]
[322124701,1712818245171,-8000.0,0.0003,7]
[322124703,1712818245181,-400.0000008,0.0003,2]
[322124705,1712818245190,-1886.50022953,0.0003,2]
[322124707,1712818245200,-252423.48991381,0.0003,2]
[322124845,1712818246239,-505.49150919,0.00027082,2]
[322124847,1712818246250,-679.8449543,0.0003,2]
[322124849,1712818246262,-1174.58104037,0.0003,2]
[322124865,1712818246400,-234.73437965,0.00024499,2]
[322124867,1712818246410,-13629.26562035,0.0003,2]
[322125363,1712818504815,172.0,0.0002099,15]
[322125364,1712818505248,172.0,0.0002098,15]
[322125365,1712818505300,150.5,0.0002099,15]
[322125366,1712818505734,172.0,0.0002097,15]
[322125367,1712818506449,150.5,0.0002098,15]
[322125368,1712818506519,234.2,0.0002097,15]
[322125369,1712818545392,1455.094371,0.00018972,2]
[322125370,1712818608383,201.09327359,0.00018966,2]
[322125371,1712818979085,459.41,0.00017763,2]
[322125373,1712819226784,150.5,0.0002099,15]
[322125374,1712819226884,150.5,0.0002098,15]
[322125375,1712819227184,150.5,0.0002097,15]
[322125376,1712819355180,1098.31398279,0.00033015,120]
[322125407,1712819432125,-532.19109069,0.00019025,2]
[322125408,1712819432135,-785.75739551,0.00019026,2]
[322125409,1712819432144,-192.39898062,0.00019027,2]
[322125410,1712819432154,-1944.21,0.00019027,2]
[322125411,1712819432164,-644.75140918,0.00019028,2]
[322125412,1712819432173,-157.77169424,0.00019032,2]
[322125413,1712819432184,-1862.63319274,0.00019169,2]
[322125414,1712819432193,-150.0,0.00019169,2]
[322125415,1712819432202,-139.00591295,0.0001917,2]
[322125416,1712819432227,-1427.08197351,0.0001917,2]
[322125417,1712819432242,-673.86917915,0.0001917,2]
[322125418,1712819432261,-405.00000002,0.0001917,2]
[322125429,1712819437730,-66182.00706046,0.0001917,2]
[322125431,1712819437740,-200.8700797,0.00019178,2]
[322125433,1712819437749,-499.99,0.00019274,2]
[322125435,1712819437759,-500.0,0.00019283,2]
[322125437,1712819437768,-231.28,0.00019426,2]
[322125439,1712819437777,-292.04,0.00019427,2]
[322125441,1712819437787,-7520.91,0.00019428,2]
[322125443,1712819437798,-11777.84,0.00019428,2]
[322125445,1712819437807,-172.55,0.00019462,2]
[322125447,1712819437816,-1093.75,0.00019548,2]
[322125449,1712819437830,-200.0,0.00019637,2]
[322125451,1712819437840,-250.0,0.00019939,2]
[322125453,1712819437849,-6211.97248697,0.0002,2]
[322125455,1712819437858,-459.41,0.00020027,2]
[322125457,1712819437869,-150.99,0.00020075,2]
[322125459,1712819437878,-4824.37954224,0.00020798,2]
[322125461,1712819437887,-4793.3633,0.00020798,2]
[322125463,1712819437896,-21357.1111,0.000208,2]
[322125465,1712819437905,-319.39308489,0.000208,2]
[322125467,1712819437916,-4147.65168804,0.00020877,4]
[322125469,1712819437926,-3012.42908555,0.00020879,2]
[322125471,1712819437935,-371.46,0.00020888,3]
[322125472,1712819437944,-156.40568673,0.00020898,2]
[322125473,1712819437953,-155.95222521,0.00020898,2]
[322125474,1712819437962,-155.38545165,0.00020898,2]
[322125475,1712819437972,-642.17855677,0.00020898,2]
[322125477,1712819437982,-928.37505763,0.00020898,2]
[322125478,1712819437994,-177.03490744,0.00020898,2]
[322125479,1712819438004,-155.45132678,0.00020898,2]
[322125480,1712819438014,-2832.90515602,0.00020898,2]
[322125481,1712819438024,-363.87948677,0.00020898,2]
[322125482,1712819438033,-266.41638357,0.00020898,2]
[322125483,1712819438043,-4312.61714156,0.00020898,2]
[322125484,1712819438052,-409.23108518,0.00020898,2]
[322125485,1712819438063,-278.21787647,0.00020898,2]
[322125486,1712819438073,-3382.95455978,0.00020898,2]
[322125487,1712819438082,-163.64221507,0.00020898,2]
[322125488,1712819438093,-2085.70572677,0.00020898,2]
[322125489,1712819438102,-237.99764573,0.00020898,2]
[322125490,1712819438111,-206.4109594,0.00020898,2]
[322125491,1712819438121,-155.61322452,0.00020898,2]
[322125492,1712819438130,-167.51746447,0.00020898,2]
[322125493,1712819438139,-376.29834861,0.00020898,2]
[322125494,1712819438149,-1650.0026369,0.00020898,2]
[322125495,1712819438158,-194.43899637,0.00020898,2]
[322125496,1712819438168,-155.58368933,0.00020898,2]
[322125497,1712819438178,-309.06957606,0.00020898,2]
[322125498,1712819438188,-195.24769107,0.00020898,2]
[322125500,1712819438197,-160.3061464,0.00020898,2]
[322125502,1712819438206,-2307.7070106,0.00020898,2]
[322125504,1712819438216,-203.53725637,0.00020898,2]
[322125506,1712819438225,-624.81043763,0.00020898,2]
[322125508,1712819438234,-1782.58175244,0.00020898,2]
[322125510,1712819438244,-270.05509214,0.00020898,2]
[322125512,1712819438253,-623.53938011,0.00020898,2]
[322125514,1712819438262,-201.43475539,0.00020898,2]
[322125516,1712819438271,-368.47878206,0.00020898,2]
[322125518,1712819438280,-155.85735465,0.00020898,2]
[322125520,1712819438290,-1955.23183089,0.00020898,2]
[322125522,1712819438299,-407.37933712,0.00020898,2]
[322125524,1712819438308,-206.27456611,0.00020898,2]
[322125525,1712819438317,-257.9924181,0.00020898,2]
[322125528,1712819438327,-224.59406512,0.00020898,2]
[322125529,1712819438336,-307.95729271,0.00020898,2]
[322125531,1712819438345,-203.92531647,0.00020898,2]
[322125533,1712819438354,-408.4031128,0.00020898,2]
[322125536,1712819438364,-253.62432224,0.00020898,2]
[322125538,1712819438373,-201.84235747,0.00020898,2]
[322125540,1712819438383,-155.77563548,0.00020898,2]
[322125541,1712819438392,-2511.36860627,0.00020898,2]
[322125543,1712819438402,-155.35132088,0.00020898,2]
[322125545,1712819438411,-10227.76107379,0.00020898,2]
[322125548,1712819438421,-448.64215521,0.00020898,2]
[322125550,1712819438430,-1058.17735735,0.00020898,2]
[322125552,1712819438440,-1238.7212054,0.00020898,2]
[322125553,1712819438449,-3475.14497539,0.00020899,2]
[322125556,1712819438459,-51409.09835422,0.000209,2]
[322125558,1712819438469,-37147.6135,0.000209,2]
[322125560,1712819438478,-31747.6622,0.000209,2]
[322125562,1712819438488,-4626.04788824,0.000209,2]
[322125564,1712819438497,-193.0579,0.000209,2]
[322125566,1712819438506,-423.58567275,0.000209,2]
[322125568,1712819438515,-72751.3854,0.000209,2]
[322125570,1712819438525,-2965.09970929,0.000209,2]
[322125572,1712819438535,-500.0,0.000209,2]
[322125573,1712819438547,-176.4868392,0.000209,2]
[322125576,1712819438556,-13177.73896071,0.000209,2]
[322125577,1712819438565,-339.74931506,0.000209,2]
[322125580,1712819438575,-151.38857153,0.000209,2]
[322125581,1712819438584,-227.98085517,0.000209,2]
[322125584,1712819438594,-227.98085499,0.000209,2]
[322125586,1712819438604,-227.98085499,0.000209,2]
[322125588,1712819438613,-227.98085499,0.000209,2]
[322125590,1712819438622,-227.98085499,0.000209,2]
[322125592,1712819438631,-227.98085499,0.000209,2]
[322125594,1712819438640,-227.98085499,0.000209,2]
[322125596,1712819438650,-227.98085499,0.000209,2]
[322125598,1712819438659,-227.98085499,0.000209,2]
[322125600,1712819438668,-227.98085499,0.000209,2]
[322125602,1712819438678,-227.98085499,0.000209,2]
[322125604,1712819438687,-227.98085499,0.000209,2]
[322125606,1712819438696,-2468.81302777,0.000209,2]
[322125608,1712819438705,-227.98085499,0.000209,2]
[322125610,1712819438715,-227.98085499,0.000209,2]
[322125611,1712819438724,-12105.18923272,0.000209,3]
[322125614,1712819438735,-227.98085499,0.000209,2]
[322125616,1712819438746,-227.98085499,0.000209,2]
[322125618,1712819438757,-227.98085499,0.000209,2]
[322125619,1712819438768,-227.98085499,0.000209,2]
[322125621,1712819438778,-227.98085499,0.000209,2]
[322125623,1712819438791,-184.99669099,0.000209,2]
[322125626,1712819438801,-227.98085499,0.000209,2]
[322125628,1712819438812,-6528.09434911,0.000209,2]
[322125630,1712819438822,-178.76507787,0.000209,2]
[322125632,1712819438831,-226.17204832,0.0002099,2]
[322125634,1712819438843,-157.041116,0.00020997,4]
[322125636,1712819438857,-157.041116,0.00020997,4]
[322125637,1712819438866,-157.041116,0.00020997,4]
[322125640,1712819438877,-157.041116,0.00020997,4]
[322125642,1712819438887,-157.041116,0.00020997,4]
[322125644,1712819438897,-157.041116,0.00020997,4]
[322125646,1712819438909,-157.041116,0.00020997,4]
[322125648,1712819438919,-157.041116,0.00020997,4]
[322125650,1712819438929,-157.041116,0.00020998,4]
[322125651,1712819438938,-157.041116,0.00020998,4]
[322125654,1712819438947,-157.041116,0.00020998,4]
[322125656,1712819438957,-157.041116,0.00020998,4]
[322125658,1712819438966,-157.041116,0.00020998,4]
[322125660,1712819438975,-157.041116,0.00020998,4]
[322125661,1712819438984,-157.041116,0.00020998,4]
[322125663,1712819438994,-157.041116,0.00020998,4]
[322125666,1712819439003,-157.041116,0.00020999,4]
[322125667,1712819439013,-157.041116,0.00020999,4]
[322125669,1712819439022,-157.041116,0.00020999,4]
[322125671,1712819439031,-157.041116,0.00020999,4]
[322125673,1712819439042,-157.041116,0.00020999,4]
[322125676,1712819439051,-157.041116,0.00020999,4]
[322125678,1712819439061,-157.041116,0.00020999,4]
[322125680,1712819439070,-157.041116,0.00020999,4]
[322125682,1712819439079,-2219.59106835,0.00020999,2]
[322125684,1712819439089,-500.0,0.00020999,2]
[322125686,1712819439098,-155.748897,0.00020999,2]
[322125688,1712819439108,-500.0,0.00020999,2]
[322125689,1712819439117,-410.36577034,0.00020999,2]
[322125691,1712819439126,-10794.64,0.00021,2]
[322125693,1712819439136,-10723944.81567775,0.00021,2]
[322125695,1712819439149,-89030.42331798,0.00021,2]
[322125696,1712819439161,-500.6964493,0.00021,2]
[322125697,1712819439172,-541772.03553432,0.00021,2]
[322125698,1712819439182,-715.05532847,0.00021,2]
[322125699,1712819439192,-864.2,0.00021,2]
[322125700,1712819439202,-265423.98000409,0.00021,2]
[322125701,1712819439214,-418.63027136,0.00021,2]
[322125702,1712819439226,-5687.49205111,0.00021,2]
[322125703,1712819439238,-1832.28241582,0.00021,2]
[322125704,1712819439250,-1061.81867662,0.00021,2]
[322125705,1712819439261,-2443.92252849,0.00021,2]
[322125706,1712819439274,-2359.072489,0.00021,2]
[322125710,1712819439914,-180.32118498,0.00021,2]
[322125711,1712819439924,-495369.678815,0.00021,2]
[322125712,1712819439939,-2966.19032854,0.00021,2]
[322125713,1712819439957,-301.605,0.00021,2]
[322125714,1712819439969,-10494.16236952,0.00021,2]
[322125715,1712819440132,-540.76870896,0.00021,2]
[322125716,1712819440144,-3647.00000005,0.00021,2]
[322125717,1712819440156,-254.21133018,0.00021,2]
[322125718,1712819440169,-713.61350894,0.00021,2]
[322125774,1712819443129,-607.24392174,0.00020898,2]
[322125776,1712819443139,-3036.33807826,0.00021,2]
[322125778,1712819443150,-9969.61533225,0.00021,2]
[322125779,1712819443162,-1199.99770011,0.00021,2]
[322125780,1712819443173,-5709.39340583,0.00021,2]
[322125781,1712819443198,-857372.00106879,0.00021,2]
[322125782,1712819443217,-1365.82,0.00021,2]
[322125783,1712819443233,-250.0,0.00021,3]
[322125784,1712819443251,-88794.89382715,0.00021,2]
[322125785,1712819443268,-1000.0,0.00021006,2]
[322125786,1712819443283,-630.0,0.000214,2]
[322125787,1712819443301,-151.38857112,0.00021458,2]
[322125788,1712819443318,-250.0,0.00021918,2]
[322125789,1712819443332,-250.0,0.00021918,2]
[322125790,1712819443351,-4824.37954215,0.0002192,2]
[322125791,1712819443367,-562.74532621,0.00022,2]
[322125793,1712819443382,-783.81607988,0.00022,2]
[322125796,1712819443401,-151.38857112,0.00022015,2]
[322125797,1712819443419,-459.41,0.00022291,2]
[322125798,1712819443431,-180.0,0.00022301,2]
[322125799,1712819443449,-151.38857112,0.00022573,2]
[322125800,1712819443464,-13177.73896061,0.00022991,2]
[322125801,1712819443476,-307.11461416,0.00023,2]
[322125802,1712819443496,-300.0,0.00023,3]
[322125803,1712819443510,-4824.37954215,0.00023043,2]
[322125804,1712819443527,-151.38857112,0.00023131,2]
[322125805,1712819443543,-319.39308481,0.00023478,2]
[322125806,1712819443558,-1000.0,0.00023631,2]
[322125807,1712819443573,-151.38857112,0.00023688,2]
[322125808,1712819443587,-224.65965367,0.00024,2]
[322125809,1712819443602,-4824.37954215,0.00024165,2]
[322125810,1712819443618,-151.38857112,0.00024246,2]
[322125811,1712819443632,-459.41,0.00024555,2]
[322125812,1712819443647,-45194.99024827,0.0002469,5]
[322125813,1712819443665,-1365.82,0.000247,2]
[322125814,1712819443680,-2223.99943328,0.000248,2]
[322125815,1712819443694,-151.38857112,0.00024803,2]
[322125816,1712819443709,-155.0,0.00025,2]
[322125817,1712819443723,-2603.91013845,0.00025,2]
[322125818,1712819443738,-350.0,0.00025,3]
[322125819,1712819443752,-13177.73896061,0.00025082,2]
[322125820,1712819443766,-151.38857112,0.00025361,2]
[322125821,1712819443780,-2468.81302777,0.000254,2]
[322125822,1712819443795,-184.99669098,0.000254,2]
[322125823,1712819443809,-6528.09434909,0.000254,2]
[322125824,1712819443824,-151.38857112,0.00025919,2]
[322125825,1712819443838,-516.95977454,0.00026,2]
[322125826,1712819443857,-823.97,0.00026141,2]
[322125827,1712819443872,-319.39308481,0.00026156,2]
[322125828,1712819443887,-1000.0,0.00026257,2]
[322125829,1712819443901,-174.08,0.00026473,2]
[322125830,1712819443917,-151.38857112,0.00026476,2]
[322125831,1712819443932,-150.0,0.00026552,2]
[322125832,1712819443947,-151.46810087,0.00026737,2]
[322125833,1712819443961,-459.41,0.00026819,2]
[322125834,1712819443976,-151.46810087,0.00026981,2]
[322125835,1712819443991,-400.0,0.00027,3]
[322125836,1712819444006,-151.38857112,0.00027034,2]
[322125837,1712819444022,-696.29274282,0.00027082,2]
[322125838,1712819444036,-151.46810087,0.00027083,2]
[322125839,1712819444052,-1365.82,0.000271,2]
[322125840,1712819444067,-13177.73896061,0.00027173,2]
[322125841,1712819444081,-226.6110744,0.00027219,2]
[322125842,1712819444096,-301.63,0.00027397,2]
[322125843,1712819444111,-1090.52,0.00027397,2]
[322125844,1712819444125,-151.38857112,0.00027592,2]
[322125845,1712819444141,-209.30823379,0.00027655,2]
[322125846,1712819444155,-151.46810087,0.0002772,2]
[322125847,1712819444169,-864.2,0.000279,2]
[322125848,1712819444184,-200.12918162,0.00028,2]
[322125849,1712819444197,-226.6110744,0.00028027,2]
[322125850,1712819444211,-151.38857112,0.00028149,2]
[322125851,1712819444225,-226.6110744,0.00028232,2]
[322125852,1712819444240,-153.45242309,0.00028378,2]
[322125853,1712819444254,-306.00620799,0.00028438,2]
[322125854,1712819444268,-226.6110744,0.0002848,2]
[322125855,1712819444282,-306.00620799,0.00028491,2]
[322125856,1712819444297,-1471.73797299,0.000285,2]
[322125857,1712819444311,-226.6110744,0.00028704,2]
[322125858,1712819444325,-151.38857112,0.00028707,2]
[322125859,1712819444340,-164.88065737,0.00028754,2]
[322125860,1712819444354,-319.39308481,0.00028833,2]
[322125861,1712819444368,-209.30823379,0.00028861,2]
[322125862,1712819444382,-1000.0,0.00028883,2]
[322125863,1712819444398,-162.84400633,0.00028905,2]
[322125864,1712819444412,-6745.48276377,0.00029,2]
[322125865,1712819444427,-450.0,0.00029,3]
[322125866,1712819444443,-1002.1681,0.00029,2]
[322125867,1712819444457,-158.31,0.00029,2]
[322125868,1712819444471,-150.76473124,0.00029005,2]
[322125869,1712819444487,-151.46810087,0.00029046,2]
[322125870,1712819444502,-459.41,0.00029082,2]
[322125871,1712819444516,-1365.82,0.000291,2]
[322125872,1712819444531,-306.00620799,0.00029187,2]
[322125873,1712819444545,-13177.73896061,0.00029264,2]
[322125874,1712819444561,-151.38857112,0.00029265,2]
[322125875,1712819444576,-226.6110744,0.00029369,2]
[322125876,1712819444800,-1026.15314431,0.000294,2]
[322125877,1712819444809,-237.67328375,0.000295,3]
[322125878,1712819444818,-1000.0,0.000295,2]
[322125879,1712819444833,-152.33080863,0.00029524,2]
[322125880,1712819444842,-76975.62363839,0.0002955,2]
[322125881,1712819444851,-176.61357958,0.00029561,2]
[322125882,1712819444860,-209.30823379,0.00029573,2]
[322125883,1712819444870,-462.81796,0.000297,2]
[322125884,1712819444879,-1000.0,0.00029759,8]
[322125885,1712819444888,-500.0,0.00029759,2]
[322125886,1712819444898,-200.0,0.0002976,2]
[322125887,1712819444907,-1000.0,0.0002976,8]
[322125888,1712819444917,-1000.0,0.0002976,8]
[322125889,1712819444927,-500.0,0.0002976,2]
[322125890,1712819444936,-500.0,0.0002976,2]
[322125891,1712819444945,-185.00096581,0.00029818,2]
[322125892,1712819444954,-151.38857112,0.00029822,2]
[322125893,1712819444963,-156.64312431,0.000299,2]
[322125894,1712819444972,-1037.31277698,0.000299,2]
[322125895,1712819444981,-187.75875954,0.000299,2]
[322125896,1712819444990,-4960.33713967,0.000299,2]
[322125897,1712819445000,-2468.81302777,0.000299,2]
[322125898,1712819445010,-184.99669098,0.000299,2]
[322125899,1712819445019,-6528.09434909,0.000299,2]
[322125900,1712819445028,-193.66968639,0.00029996,2]
[322125901,1712819445038,-858.15283199,0.00029998,3]
[322125902,1712819445048,-2008.35892859,0.00029998,2]
[322125903,1712819445058,-94990.0352368,0.00029998,2]
[322125904,1712819445068,-2489.3525141,0.00029998,2]
[322125905,1712819445080,-16203.2325181,0.00029998,2]
[322125906,1712819445089,-3427.1083832,0.00029998,2]
[322125907,1712819445098,-7716.3907657,0.00029998,2]
[322125908,1712819445107,-2787.65340569,0.00029999,2]
[322125909,1712819445117,-100000.0,0.0003,2]
[322125910,1712819445126,-115282.72380268,0.0003,2]
[322125911,1712819445252,-192.90728418,0.00020999,2]
[322125912,1712819445262,-134.38736649,0.0003,2]
[322125913,1712819445282,-3046.3587192,0.0003,2]
[322125914,1712819445295,-29260.0,0.0003,2]
[322125915,1712819445306,-979.93071261,0.0003,2]
[322125927,1712819447795,-785.30074613,0.00020899,2]
[322125928,1712819447805,-381.93658741,0.000209,2]
[322125929,1712819447815,-2500.76266647,0.00025288,2]
[322125930,1712819447904,-675.75152412,0.00025288,2]
[322125931,1712819448037,-646.18711773,0.00025288,2]
[322125932,1712819511161,150.0,0.0001893,2]
[322125933,1712819511181,150.0,0.0001893,2]
[322125934,1712819511203,150.0,0.0001893,2]
[322125935,1712819511224,150.0,0.0001893,2]
[322125936,1712819511243,150.0,0.0001893,2]
[322125937,1712819511263,136.8904,0.0001893,2]
[322125938,1712819996582,1937.81762217,0.0003,25]
[322125981,1712820631967,-401.1194904,0.00020012,2]
[322125982,1712820631977,-981.42833526,0.00020013,2]
[322125983,1712820632085,-540.396828,0.00020013,2]
[322125984,1712820632097,-285.099995,0.00020013,2]
[322125985,1712820632328,-4321.41017589,0.00020013,2]
[322125986,1712820632342,-304.75740355,0.00020014,2]
[322125987,1712820632352,-607.24392174,0.00020014,2]
[322125988,1712820632362,-361.3113,0.00020018,2]
[322125989,1712820632373,-1007.71660958,0.00020119,2]
[322125990,1712820632382,-150.0,0.00020798,2]
[322125991,1712820632392,-253.7192,0.00020799,2]
[322125992,1712820632402,-715.05532847,0.00021,2]
[322125993,1712820632412,-3529.0,0.000215,2]
[322125994,1712820632422,-783.81607988,0.00022,2]
[322125995,1712820632432,-562.74532621,0.00022,2]
[322125996,1712820632442,-307.11461416,0.00023,2]
[322125997,1712820632452,-2577.93,0.00023988,2]
[322125998,1712820632462,-224.65965367,0.00024,2]
[322125999,1712820632472,-2223.99943328,0.000248,2]
[322126000,1712820632483,-2603.91013845,0.00025,2]
[322126001,1712820632493,-155.0,0.00025,2]
[322126002,1712820632504,-338.19,0.00025125,2]
[322126003,1712820632513,-188.37741041,0.00026524,2]
[322126004,1712820632523,-157.21377486,0.00026579,2]
[322126005,1712820632533,-169.49523126,0.000268,2]
[322126006,1712820632543,-153.94987676,0.00026807,2]
[322126007,1712820632553,-239.77,0.00026906,2]
[322126008,1712820632563,-177.41,0.00026934,2]
[322126009,1712820632573,-4137.11,0.0002698,2]
[322126010,1712820632583,-704.91869228,0.00026994,2]
[322126011,1712820632593,-155.0,0.00026994,2]
[322126012,1712820632603,-211.98232217,0.00026995,2]
[322126013,1712820632613,-9583.45153089,0.00026995,2]
[322126015,1712820632623,-23900.0,0.00026996,2]
[322126017,1712820632633,-162.41,0.00027004,2]
[322126019,1712820632643,-6113.15499883,0.0002703,2]
[322126021,1712820632653,-551.84349489,0.00027038,2]
[322126023,1712820632662,-212.18761855,0.00027038,2]
[322126025,1712820632671,-155.0,0.00027039,2]
[322126027,1712820632681,-1829.32,0.00027051,2]
[322126029,1712820632691,-250.0,0.00027056,2]
[322126031,1712820632700,-151.11,0.00027147,2]
[322126033,1712820632709,-250.0,0.00027188,2]
[322126035,1712820632718,-206.52,0.00027237,2]
[322126037,1712820632728,-3933.29,0.00027242,2]
[322126039,1712820632737,-290.16,0.00027246,2]
[322126041,1712820632747,-250.0,0.00027255,2]
[322126043,1712820632757,-1138.58,0.00027275,2]
[322126045,1712820632767,-188.37741041,0.000273,2]
[322126047,1712820632776,-1000.0,0.00027303,2]
[322126049,1712820632791,-500.0,0.00027327,2]
[322126052,1712820632801,-338.19,0.00027389,2]
[322126054,1712820632811,-309.14,0.00027397,2]
[322126056,1712820632820,-24572.86,0.00027407,2]
[322126058,1712820632830,-500.0,0.00027433,2]
[322126060,1712820632840,-150.76473124,0.00027507,2]
[322126062,1712820632849,-316.41669139,0.00027547,2]
[322126064,1712820632859,-832.87535309,0.00027568,2]
[322126066,1712820632869,-316.41669139,0.00027659,2]
[322126068,1712820632879,-159.6662564,0.00027826,2]
[322126070,1712820632889,-154.14489771,0.00027989,2]
[322126072,1712820632898,-188.37741041,0.00028122,2]
[322126074,1712820632907,-154.36695506,0.00028377,2]
[322126076,1712820632917,-157.041116,0.00028448,8]
[322126078,1712820632927,-1471.73797299,0.000285,2]
[322126080,1712820632937,-153.45242309,0.00028538,2]
[322126082,1712820632946,-153.94987676,0.00028832,2]
[322126084,1712820632956,-6745.48276377,0.00029,2]
[322126087,1712820632966,-316.41669139,0.00029095,2]
[322126089,1712820632975,-165.23571955,0.00029186,2]
[322126091,1712820632985,-152.6758148,0.00029279,2]
[322126092,1712820632995,-152.6758148,0.00029382,2]
[322126094,1712820633006,-155.041116,0.00029448,9]
[322126095,1712820633016,-152.0,0.00029491,3]
[322126097,1712820633025,-152.6758148,0.00029509,2]
[322126099,1712820633034,-180.0,0.0002951,2]
[322126101,1712820633044,-150.76473124,0.00029609,2]
[322126104,1712820633057,-338.19,0.00029653,2]
[322126106,1712820633067,-152.6758148,0.00029699,2]
[322126108,1712820633076,-150.0,0.00029726,2]
[322126109,1712820633086,-1500.0,0.00029727,2]
[322126111,1712820633096,-1500.0,0.00029727,2]
[322126113,1712820633106,-150.0,0.00029727,2]
[322126115,1712820633116,-150.0,0.00029732,2]
[322126117,1712820633126,-1500.0,0.00029732,2]
[322126119,1712820633136,-150.0,0.00029734,2]
[322126121,1712820633145,-150.0,0.00029739,2]
[322126123,1712820633154,-150.0,0.0002974,2]
[322126125,1712820633164,-300.0,0.00029741,2]
[322126127,1712820633174,-150.0,0.00029748,2]
[322126129,1712820633187,-1500.0,0.00029749,2]
[322126131,1712820633197,-150.0,0.0002975,2]
[322126133,1712820633206,-150.0,0.00029751,2]
[322126135,1712820633216,-150.0,0.00029752,2]
[322126137,1712820633226,-150.0,0.00029752,2]
[322126139,1712820633238,-150.0,0.00029754,2]
[322126141,1712820633251,-150.0,0.00029754,2]
[322126144,1712820633263,-1500.0,0.00029756,2]
[322126146,1712820633274,-300.0,0.00029759,2]
[322126148,1712820633283,-150.0,0.00029759,2]
[322126149,1712820633293,-1000.0,0.0002976,8]
[322126151,1712820633303,-150.0,0.0002976,2]
[322126152,1712820633313,-10416.93510699,0.00029761,2]
[322126153,1712820633322,-150.0,0.00029764,2]
[322126154,1712820633332,-150.0,0.00029766,2]
[322126155,1712820633342,-150.0,0.00029766,2]
[322126156,1712820633352,-150.0,0.00029767,2]
[322126157,1712820633362,-150.0,0.00029768,2]
[322126158,1712820633372,-150.0,0.00029769,2]
[322126159,1712820633381,-150.0,0.0002977,2]
[322126160,1712820633391,-150.0,0.00029771,2]
[322126161,1712820633400,-1500.0,0.00029772,2]